fUST/lending_fUST_20250422
["ID","MTS","AMOUNT","RATE_DAILY","PERIOD"]
[358641902,1745331041898,-500.0,0.00021917,2]
[358641904,1745331041907,-500.0,0.00021917,2]
[358641906,1745331041918,-500.0,0.00021917,2]
[358641908,1745331041927,-500.0,0.00021917,2]
[358641910,1745331041939,-1632.39,0.00021917,2]
[358641912,1745331041949,-500.0,0.00021917,2]
[358641919,1745331041959,-500.0,0.00021917,2]
[358641920,1745331042117,-500.0,0.00021917,2]
[358641921,1745331042128,-500.0,0.00021917,2]
[358641922,1745331042138,-501.1,0.00021917,2]
[358641923,1745331042149,-500.0,0.00021917,2]
[358641924,1745331042159,-900.25,0.00021917,2]
[358641925,1745331042169,-500.0,0.00021917,2]
[358641926,1745331042178,-500.0,0.00021917,2]
[358641927,1745331042188,-500.0,0.00021917,2]
[358641928,1745331042198,-500.0,0.00021917,2]
[358641929,1745331042207,-3501.81,0.00021917,2]
[358641930,1745331042217,-636.93,0.00021917,2]
[358641931,1745331042226,-500.0,0.00021917,2]
[358641933,1745331042236,-500.0,0.00021917,2]
[358641934,1745331042245,-500.0,0.00021917,2]
[358641936,1745331042254,-502.22130498,0.00021917,2]
[358641938,1745331042264,-500.0,0.00021917,2]
[358641940,1745331042273,-500.0,0.00021917,2]
[358641942,1745331042283,-504.83227008,0.00021917,2]
[358641944,1745331042293,-500.0,0.00021917,2]
[358641946,1745331042302,-500.0,0.00021917,2]
[358641948,1745331042311,-500.0,0.00021917,2]
[358641950,1745331042320,-515.51396382,0.00021917,2]
[358641952,1745331042330,-500.0,0.00021917,2]
[358641954,1745331042343,-500.0,0.00021917,2]
[358641956,1745331042353,-500.0,0.00021917,2]
[358641958,1745331042362,-189.331331,0.00021918,2]
[358641960,1745331042372,-166.0,0.00021918,2]
[358641962,1745331042382,-260.12531393,0.00021918,2]
[358641964,1745331042392,-151.0,0.00021918,2]
[358641966,1745331042402,-151.0,0.00021918,2]
[358641967,1745331042413,-151.0,0.00021918,2]
[358641969,1745331042425,-151.0,0.00021918,2]
[358641971,1745331042435,-151.0,0.00021918,2]
[358641973,1745331042445,-151.0,0.00021918,2]
[358641975,1745331042455,-151.0,0.00021918,2]
[358641977,1745331042466,-293.18206662,0.00021929,2]
[358641979,1745331042476,-152.0,0.00022,2]
[358641981,1745331042486,-1329.47910443,0.00022,2]
[358641983,1745331042495,-152.0,0.00022059,2]
[358641985,1745331042505,-372.43028825,0.00022072,2]
[358641987,1745331042515,-500.0,0.00022073,2]
[358641989,1745331042525,-500.0,0.00022073,2]
[358641991,1745331042535,-500.0,0.00022073,2]
[358641993,1745331042545,-504.31100951,0.00022073,2]
[358641995,1745331042554,-500.0,0.00022073,2]
[358641997,1745331042564,-500.0,0.00022073,2]
[358641999,1745331042575,-500.0,0.00022073,2]
[358642001,1745331042585,-500.0,0.00022073,2]
[358642003,1745331042594,-502.67115217,0.00022073,2]
[358642005,1745331042604,-500.0,0.00022073,2]
[358642007,1745331042614,-507.68983846,0.00022073,2]
[358642009,1745331042624,-500.0,0.00022073,2]
[358642011,1745331042634,-500.0,0.00022073,2]
[358642013,1745331042645,-500.0,0.00022073,2]
[358642015,1745331042656,-500.0,0.00022073,2]
[358642017,1745331042666,-500.0,0.00022073,2]
[358642019,1745331042676,-505.18792042,0.00022073,2]
[358642021,1745331042686,-177.92986561,0.00022073,2]
[358642023,1745331042696,-500.0,0.00022073,2]
[358642025,1745331042706,-500.0,0.00022073,2]
[358642027,1745331042716,-300.0,0.00022073,2]
[358642029,1745331042727,-500.0,0.00022073,2]
[358642031,1745331042738,-500.0,0.00022073,2]
[358642033,1745331042748,-265.40714463,0.00022073,2]
[358642035,1745331042757,-536.93726865,0.00022073,2]
[358642037,1745331042767,-500.73159819,0.00022073,2]
[358642039,1745331042777,-500.0,0.00022073,2]
[358642041,1745331042787,-501.1063021,0.00022073,2]
[358642043,1745331042798,-500.0,0.00022073,2]
[358642045,1745331042807,-501.04286608,0.00022073,2]
[358642047,1745331042818,-481.25447053,0.00022073,2]
[358642049,1745331042830,-500.0,0.00022073,2]
[358642051,1745331042840,-500.0,0.00022073,2]
[358642053,1745331042850,-500.0,0.00022073,2]
[358642054,1745331042861,-500.0,0.00022073,2]
[358642055,1745331042871,-500.0,0.00022073,2]
[358642057,1745331042886,-500.73834366,0.00022073,2]
[358642059,1745331042896,-308512.36596741,0.00022091,2]
[358642072,1745331043008,-500.0,0.00021917,2]
[358642075,1745331043018,-500.0,0.00021917,2]
[358642078,1745331043028,-2582.24999942,0.00022091,2]
[358642165,1745331043651,-903.97995883,0.00022091,2]
[358642167,1745331043665,-53043.84895011,0.00022091,2]
[358642442,1745331046653,-500.0,0.00021917,2]
[358642445,1745331046663,-500.0,0.00021917,2]
[358642447,1745331046675,-43.04398023,0.00022091,2]
[358642449,1745331046688,-4914.511144,0.00022091,2]
[358642451,1745331046697,-198.70039578,0.00022091,2]
[358642453,1745331046706,-153.0,0.000221,2]
[358642455,1745331046716,-500.0,0.00022191,2]
[358642457,1745331046725,-189.62633072,0.00022191,2]
[358642459,1745331046735,-500.0,0.00022191,2]
[358642461,1745331046744,-500.0,0.00022191,2]
[358642463,1745331046754,-500.0,0.00022191,2]
[358642465,1745331046763,-500.0,0.00022191,2]
[358642467,1745331046772,-500.0,0.00022191,2]
[358642468,1745331046782,-500.0,0.00022191,2]
[358642470,1745331046792,-71.8621295,0.00022191,2]
[358642474,1745331046816,-450.6478705,0.00022191,2]
[358642476,1745331046828,-500.0,0.00022191,2]
[358642478,1745331046838,-634.78,0.00022191,2]
[358642480,1745331046848,-500.0,0.00022191,2]
[358642482,1745331046859,-500.0,0.00022191,2]
[358642484,1745331046869,-500.0,0.00022191,2]
[358642487,1745331046881,-500.0,0.00022191,2]
[358642488,1745331046891,-500.0,0.00022191,2]
[358642491,1745331046902,-500.0,0.00022191,2]
[358642493,1745331046912,-362.365965,0.00022191,2]
[358642495,1745331046924,-532.67,0.00022191,2]
[358642497,1745331046934,-500.0,0.00022191,2]
[358642499,1745331046944,-500.0,0.00022191,2]
[358642501,1745331046955,-500.0,0.00022191,2]
[358642503,1745331046966,-500.0,0.00022191,2]
[358642505,1745331046976,-506.30496042,0.00022191,2]
[358642507,1745331046987,-500.0,0.00022191,2]
[358642509,1745331046996,-526.47,0.00022191,2]
[358642510,1745331047006,-878.22,0.00022191,2]
[358642511,1745331047015,-500.0,0.00022191,2]
[358642512,1745331047025,-500.0,0.00022191,2]
[358642513,1745331047035,-500.0,0.00022191,2]
[358642514,1745331047045,-500.0,0.00022191,2]
[358642515,1745331047055,-500.0,0.00022191,2]
[358642516,1745331047064,-500.0,0.00022191,2]
[358642517,1745331047075,-500.0,0.00022191,2]
[358642518,1745331047085,-500.0,0.00022191,2]
[358642519,1745331047095,-500.0,0.00022191,2]
[358642520,1745331047105,-1356.9,0.00022191,2]
[358642521,1745331047115,-2363.89,0.00022191,2]
[358642522,1745331047125,-3371.69,0.00022191,2]
[358642523,1745331047135,-500.0,0.00022191,2]
[358642524,1745331047145,-500.0,0.00022191,2]
[358642525,1745331047155,-500.0,0.00022191,2]
[358642526,1745331047166,-500.0,0.00022191,2]
[358642527,1745331047177,-500.0,0.00022191,2]
[358642528,1745331047187,-500.0,0.00022191,2]
[358642529,1745331047197,-500.0,0.00022191,2]
[358642530,1745331047207,-500.0,0.00022191,2]
[358642531,1745331047218,-307.47999198,0.00022191,2]
[358642532,1745331047228,-500.0,0.00022191,2]
[358642533,1745331047238,-500.0,0.00022191,2]
[358642534,1745331047248,-500.0,0.00022191,2]
[358642535,1745331047257,-500.0,0.00022191,2]
[358642536,1745331047266,-500.0,0.00022191,2]
[358642537,1745331047276,-500.0,0.00022191,2]
[358642538,1745331047287,-500.0,0.00022191,2]
[358642539,1745331047297,-500.0,0.00022191,2]
[358642540,1745331047307,-500.0,0.00022191,2]
[358642541,1745331047316,-530.25,0.00022191,2]
[358642542,1745331047326,-8966.4,0.00022191,2]
[358642543,1745331047337,-500.0,0.00022191,2]
[358642544,1745331047349,-500.0,0.00022191,2]
[358642545,1745331047360,-500.0,0.00022191,2]
[358642546,1745331047370,-500.0,0.00022191,2]
[358642547,1745331047380,-500.0,0.00022191,2]
[358642548,1745331047392,-500.0,0.00022191,2]
[358642549,1745331047403,-500.0,0.00022191,2]
[358642550,1745331047413,-500.0,0.00022191,2]
[358642551,1745331047426,-514.37271961,0.00022191,2]
[358642552,1745331047435,-500.0,0.00022191,2]
[358642553,1745331047450,-500.0,0.00022191,2]
[358642554,1745331047460,-500.0,0.00022191,2]
[358642555,1745331047470,-500.0,0.00022191,2]
[358642556,1745331047480,-500.0,0.00022191,2]
[358642557,1745331047490,-500.0,0.00022191,2]
[358642558,1745331047500,-500.0,0.00022191,2]
[358642559,1745331047511,-500.0,0.00022191,2]
[358642560,1745331047524,-287.67397708,0.00022191,2]
[358642561,1745331047535,-583.19,0.00022191,2]
[358642562,1745331047548,-500.0,0.00022191,2]
[358642563,1745331047559,-500.0,0.00022191,2]
[358642564,1745331047569,-1411.54,0.00022191,2]
[358642565,1745331047579,-500.0,0.00022191,2]
[358642566,1745331047589,-500.0,0.00022191,2]
[358642567,1745331047599,-500.0,0.00022191,2]
[358642568,1745331047610,-500.0,0.00022191,2]
[358642569,1745331047620,-500.0,0.00022191,2]
[358642570,1745331047630,-2636.67,0.00022191,2]
[358642572,1745331047640,-500.0,0.00022191,2]
[358642573,1745331047651,-501.69938003,0.00022191,2]
[358642574,1745331047661,-500.0,0.00022191,2]
[358642575,1745331047671,-500.0,0.00022191,2]
[358642576,1745331047683,-500.0,0.00022191,2]
[358642577,1745331047693,-500.0,0.00022191,2]
[358642578,1745331047702,-500.0,0.00022191,2]
[358642579,1745331047712,-500.0,0.00022191,2]
[358642580,1745331047722,-500.0,0.00022191,2]
[358642581,1745331047732,-500.0,0.00022191,2]
[358642582,1745331047743,-500.0,0.00022191,2]
[358642583,1745331047753,-500.0,0.00022191,2]
[358642584,1745331047763,-500.0,0.00022191,2]
[358642585,1745331047773,-2051.41,0.00022191,2]
[358642586,1745331047783,-500.0,0.00022191,2]
[358642587,1745331047793,-1220.06,0.00022191,2]
[358642588,1745331047804,-486.34626933,0.00022191,2]
[358642589,1745331047814,-500.0,0.00022191,2]
[358642590,1745331047824,-500.0,0.00022191,2]
[358642591,1745331047834,-500.0,0.00022191,2]
[358642592,1745331047847,-500.0,0.00022191,2]
[358642593,1745331047857,-500.0,0.00022191,2]
[358642594,1745331047867,-500.0,0.00022191,2]
[358642595,1745331047877,-500.0,0.00022191,2]
[358642596,1745331047888,-500.0,0.00022191,2]
[358642597,1745331047898,-4559.92,0.00022191,2]
[358642598,1745331047908,-191.5905361,0.00022191,2]
[358642599,1745331047918,-500.0,0.00022191,2]
[358642600,1745331047928,-500.0,0.00022191,2]
[358642601,1745331047939,-500.0,0.00022191,2]
[358642602,1745331047949,-500.0,0.00022191,2]
[358642603,1745331047958,-500.0,0.00022191,2]
[358642604,1745331047969,-500.0,0.00022191,2]
[358642605,1745331047979,-500.0,0.00022191,2]
[358642606,1745331047989,-632.66703073,0.00022191,2]
[358642607,1745331047999,-500.0,0.00022191,2]
[358642608,1745331048009,-500.0,0.00022191,2]
[358642609,1745331048019,-588.16,0.00022191,2]
[358642610,1745331048028,-725.97,0.00022191,2]
[358642611,1745331048039,-565.77,0.00022191,2]
[358642612,1745331048049,-500.0,0.00022191,2]
[358642613,1745331048059,-500.0,0.00022191,2]
[358642614,1745331048072,-509.00604722,0.00022191,2]
[358642615,1745331048081,-500.0,0.00022191,2]
[358642616,1745331048091,-518.81745103,0.00022191,2]
[358642617,1745331048251,-1113.57254897,0.00022191,2]
[358642618,1745331048262,-528.23856941,0.00022191,2]
[358642620,1745331048272,-500.0,0.00022191,2]
[358642621,1745331048282,-500.0,0.00022191,2]
[358642622,1745331048292,-501.1,0.00022191,2]
[358642623,1745331048303,-500.0,0.00022191,2]
[358642624,1745331048313,-900.25,0.00022191,2]
[358642625,1745331048323,-500.0,0.00022191,2]
[358642628,1745331048484,-626.44,0.00022191,2]
[358642629,1745331048497,-500.0,0.00022191,2]
[358642630,1745331048507,-3501.81,0.00022191,2]
[358642631,1745331048518,-636.93,0.00022191,2]
[358642632,1745331048528,-500.0,0.00022191,2]
[358642633,1745331048538,-500.0,0.00022191,2]
[358642634,1745331048548,-500.0,0.00022191,2]
[358642635,1745331048559,-500.0,0.00022191,2]
[358642636,1745331048569,-500.0,0.00022191,2]
[358642637,1745331048579,-349.4869454,0.000222,2]
[358642638,1745331048589,-320.2499832,0.000222,2]
[358642639,1745331048599,-361.3287945,0.000222,2]
[358642640,1745331048610,-300.0,0.000223,2]
[358642641,1745331048620,-160.0,0.00022306,2]
[358642642,1745331048630,-160.0,0.00022306,2]
[358642643,1745331048640,-160.0,0.00022306,2]
[358642644,1745331048650,-633.96613974,0.00022306,2]
[358642645,1745331048663,-95.20052693,0.00022306,2]
[358642646,1745331048674,-2379.24969391,0.00022306,2]
[358642647,1745331048685,-420.73667954,0.00022306,2]
[358642648,1745331048696,-198.70039578,0.00022365,2]
[358642649,1745331048706,-500.0,0.00022465,2]
[358642650,1745331048716,-500.0,0.00022465,2]
[358642651,1745331048726,-427.15630063,0.00022465,2]
[358642743,1745331081537,200.0,0.00045424,30]
[358642747,1745331153936,-5800.0,0.00025002,120]
[358642749,1745331163790,1203.04117676,0.00045424,120]
[358642750,1745331165512,21805.92704935,0.00045424,31]
[358642757,1745331308391,200.0,0.00045393,120]
[358642758,1745331309074,200.0,0.00045393,120]
[358642792,1745331834627,322.38052613,0.00045443,120]
[358642814,1745332059918,200.0,0.00045443,120]
[358642815,1745332079166,500.0,0.00045443,60]
[358642816,1745332079423,500.0,0.00045443,60]
[358642817,1745332079716,500.0,0.00045443,60]
[358642818,1745332079965,500.0,0.00045443,60]
[358642819,1745332080235,500.0,0.00045443,60]
[358642820,1745332080484,500.0,0.00045443,60]
[358642821,1745332080740,500.0,0.00045443,60]
[358642822,1745332080979,500.0,0.00045443,60]
[358642823,1745332081233,500.0,0.00045443,60]
[358642824,1745332081486,500.0,0.00045443,60]
[358642825,1745332081762,500.0,0.00045443,60]
[358642826,1745332082007,500.0,0.00045443,60]
[358642827,1745332082275,500.0,0.00045443,60]
[358642828,1745332082520,500.0,0.00045443,60]
[358642829,1745332082805,500.0,0.00045443,60]
[358642830,1745332083044,500.0,0.00045443,60]
[358642831,1745332087194,500.0,0.00045443,60]
[358642832,1745332087511,500.0,0.00045443,60]
[358642833,1745332087745,500.0,0.00045443,60]
[358642834,1745332088023,500.0,0.00045443,60]
[358642835,1745332088294,301.28387614,0.00045443,60]
[358642836,1745332122581,3994.78462652,0.00025,120]
[358642877,1745332232613,-213.3977178,0.00020816,2]
[358642879,1745332232624,-250.0,0.00020834,2]
[358642881,1745332232634,-3583.24118655,0.00020841,2]
[358642884,1745332232647,-1725.27382852,0.00020841,2]
[358642894,1745332232739,-1230.90624823,0.00020841,2]
[358642897,1745332232749,-160.0,0.00021676,2]
[358642900,1745332232760,-300.0,0.00021714,2]
[358642902,1745332232770,-2135.25743437,0.00021715,2]
[358642904,1745332232783,-300.0,0.00021771,2]
[358642905,1745332232793,-300.0,0.00021771,2]
[358642907,1745332232803,-11360.1482348,0.00021772,3]
[358642908,1745332232813,-210.97002856,0.00021773,2]
[358642909,1745332232823,-210.97002856,0.00021784,2]
[358642910,1745332232835,-26568.22368958,0.00021784,2]
[358642911,1745332232844,-210.97002856,0.00021795,2]
[358642912,1745332232855,-210.97002856,0.00021806,2]
[358642913,1745332232865,-490.96585226,0.00021816,2]
[358642914,1745332232875,-500.0,0.00021816,2]
[358642915,1745332232884,-191.72352887,0.00021816,2]
[358642916,1745332232894,-500.0,0.00021816,2]
[358642917,1745332232905,-500.0,0.00021816,2]
[358642918,1745332232915,-500.0,0.00021816,2]
[358642919,1745332232926,-500.0,0.00021816,2]
[358642920,1745332232936,-386.86045668,0.00021816,2]
[358642921,1745332232946,-500.0,0.00021816,2]
[358642922,1745332232956,-500.0,0.00021816,2]
[358642923,1745332232966,-500.0,0.00021816,2]
[358642924,1745332232976,-500.0,0.00021816,2]
[358642925,1745332232986,-500.0,0.00021816,2]
[358642926,1745332232996,-500.0,0.00021816,2]
[358642927,1745332233006,-500.0,0.00021816,2]
[358642928,1745332233016,-500.0,0.00021816,2]
[358642929,1745332233026,-500.0,0.00021816,2]
[358642930,1745332233037,-500.0,0.00021816,2]
[358642931,1745332233048,-500.0,0.00021816,2]
[358642932,1745332233059,-500.0,0.00021816,2]
[358642933,1745332233070,-500.0,0.00021816,2]
[358642934,1745332233082,-500.0,0.00021816,2]
[358642935,1745332233092,-500.0,0.00021816,2]
[358642936,1745332233102,-543.26205916,0.00021816,2]
[358642937,1745332233112,-500.0,0.00021816,2]
[358642938,1745332233122,-500.0,0.00021816,2]
[358642939,1745332233132,-500.0,0.00021816,2]
[358642940,1745332233143,-500.0,0.00021816,2]
[358642941,1745332233153,-500.0,0.00021816,2]
[358642942,1745332233163,-500.0,0.00021816,2]
[358642943,1745332233173,-500.0,0.00021816,2]
[358642944,1745332233184,-500.0,0.00021816,2]
[358642945,1745332233198,-500.0,0.00021816,2]
[358642946,1745332233208,-500.0,0.00021816,2]
[358642947,1745332233218,-67793.3528802,0.00021817,2]
[358642948,1745332233232,-14710.34261462,0.00021817,2]
[358642949,1745332233244,-21365.03650497,0.00021817,2]
[358642957,1745332238875,-266131.26800021,0.00021817,2]
[358642958,1745332238886,-210.97002856,0.00021817,2]
[358642960,1745332238895,-500.0,0.00021873,2]
[358642962,1745332238905,-500.0,0.00021873,2]
[358642964,1745332238915,-507.68983846,0.00021873,2]
[358642966,1745332238925,-500.0,0.00021873,2]
[358642968,1745332238935,-500.0,0.00021873,2]
[358642970,1745332238945,-500.0,0.00021873,2]
[358642971,1745332238955,-500.0,0.00021873,2]
[358642972,1745332238964,-265.40714463,0.00021873,2]
[358642973,1745332238974,-152.0,0.00021898,2]
[358642974,1745332238984,-500.0,0.00021917,2]
[358642975,1745332238994,-447.21144584,0.00021917,2]
[358642976,1745332239004,-500.0,0.00021917,2]
[358642977,1745332239014,-500.0,0.00021917,2]
[358642978,1745332239023,-500.0,0.00021917,2]
[358642979,1745332239033,-500.0,0.00021917,2]
[358642980,1745332239043,-500.0,0.00021917,2]
[358642981,1745332239053,-500.0,0.00021917,2]
[358642982,1745332239062,-500.0,0.00021917,2]
[358642983,1745332239071,-500.0,0.00021917,2]
[358642984,1745332239084,-500.0,0.00021917,2]
[358642985,1745332239094,-592.95871272,0.00021917,2]
[358642986,1745332239104,-500.0,0.00021917,2]
[358642987,1745332239114,-500.0,0.00021917,2]
[358642988,1745332239124,-511.80561492,0.00021917,2]
[358642989,1745332239134,-500.0,0.00021917,2]
[358642990,1745332239144,-500.0,0.00021917,2]
[358642991,1745332239154,-500.0,0.00021917,2]
[358642992,1745332239163,-500.0,0.00021917,2]
[358642993,1745332239173,-500.0,0.00021917,2]
[358642994,1745332239183,-500.0,0.00021917,2]
[358642995,1745332239193,-500.0,0.00021917,2]
[358642996,1745332239203,-500.0,0.00021917,2]
[358642997,1745332239213,-500.0,0.00021917,2]
[358642998,1745332239223,-500.0,0.00021917,2]
[358642999,1745332239233,-510.71071946,0.00021917,2]
[358643000,1745332239243,-500.0,0.00021917,2]
[358643001,1745332239253,-500.0,0.00021917,2]
[358643002,1745332239264,-500.0,0.00021917,2]
[358643003,1745332239274,-500.98956056,0.00021917,2]
[358643004,1745332239284,-500.0,0.00021917,2]
[358643005,1745332239294,-500.0,0.00021917,2]
[358643006,1745332239304,-500.0,0.00021917,2]
[358643007,1745332239315,-500.0,0.00021917,2]
[358643008,1745332239325,-500.0,0.00021917,2]
[358643009,1745332239342,-500.38574003,0.00021917,2]
[358643010,1745332239352,-527.71,0.00021917,2]
[358643011,1745332239362,-500.0,0.00021917,2]
[358643012,1745332239371,-500.0,0.00021917,2]
[358643013,1745332239381,-500.0,0.00021917,2]
[358643014,1745332239391,-500.65093928,0.00021917,2]
[358643015,1745332239401,-541.53295048,0.00021917,2]
[358643016,1745332239410,-502.75279379,0.00021917,2]
[358643017,1745332239420,-642.68,0.00021917,2]
[358643018,1745332239430,-500.0,0.00021917,2]
[358643019,1745332239439,-546.57177911,0.00021917,2]
[358643020,1745332239449,-500.0,0.00021917,2]
[358643021,1745332239459,-500.0,0.00021917,2]
[358643022,1745332239469,-500.0,0.00021917,2]
[358643023,1745332239479,-504.12366263,0.00021917,2]
[358643024,1745332239488,-500.14583226,0.00021917,2]
[358643025,1745332239498,-500.0,0.00021917,2]
[358643026,1745332239508,-500.0,0.00021917,2]
[358643027,1745332239517,-500.0,0.00021917,2]
[358643028,1745332239527,-501.44029348,0.00021917,2]
[358643029,1745332239537,-500.0,0.00021917,2]
[358643030,1745332239546,-502.09964319,0.00021917,2]
[358643031,1745332239556,-500.0,0.00021917,2]
[358643032,1745332239565,-500.0,0.00021917,2]
[358643033,1745332239575,-513.11844049,0.00021917,2]
[358643034,1745332239586,-500.0,0.00021917,2]
[358643035,1745332239596,-500.0,0.00021917,2]
[358643036,1745332239607,-500.0,0.00021917,2]
[358643037,1745332239616,-500.0,0.00021917,2]
[358643038,1745332239626,-500.0,0.00021917,2]
[358643039,1745332239636,-500.0,0.00021917,2]
[358643040,1745332239645,-500.0,0.00021917,2]
[358643041,1745332239655,-500.0,0.00021917,2]
[358643042,1745332239665,-500.0,0.00021917,2]
[358643043,1745332239675,-500.0,0.00021917,2]
[358643044,1745332239684,-500.0,0.00021917,2]
[358643045,1745332239695,-500.0,0.00021917,2]
[358643046,1745332239706,-500.59206856,0.00021917,2]
[358643047,1745332239716,-500.0,0.00021917,2]
[358643048,1745332239726,-500.0,0.00021917,2]
[358643049,1745332239736,-500.0,0.00021917,2]
[358643050,1745332239747,-500.43082469,0.00021917,2]
[358643051,1745332239757,-500.0,0.00021917,2]
[358643052,1745332239766,-502.85630333,0.00021917,2]
[358643053,1745332239776,-500.0,0.00021917,2]
[358643054,1745332239787,-500.0,0.00021917,2]
[358643055,1745332239804,-535.49989105,0.00021917,2]
[358643056,1745332239818,-500.0,0.00021917,2]
[358643057,1745332239834,-500.0,0.00021917,2]
[358643058,1745332239848,-500.0,0.00021917,2]
[358643059,1745332239860,-500.0,0.00021917,2]
[358643060,1745332239872,-500.0,0.00021917,2]
[358643061,1745332239884,-500.0,0.00021917,2]
[358643062,1745332239898,-500.0,0.00021917,2]
[358643063,1745332239912,-500.0,0.00021917,2]
[358643064,1745332239925,-500.0,0.00021917,2]
[358643065,1745332239938,-505.62941426,0.00021917,2]
[358643066,1745332239952,-501.53708838,0.00021917,2]
[358643067,1745332239966,-500.0,0.00021917,2]
[358643068,1745332239979,-500.0,0.00021917,2]
[358643069,1745332239992,-500.0,0.00021917,2]
[358643070,1745332240005,-504.0096716,0.00021917,2]
[358643071,1745332240019,-500.0,0.00021917,2]
[358643072,1745332240032,-500.0,0.00021917,2]
[358643073,1745332240044,-500.0,0.00021917,2]
[358643074,1745332240056,-500.0,0.00021917,2]
[358643075,1745332240070,-500.71100963,0.00021917,2]
[358643076,1745332240084,-502.16583751,0.00021917,2]
[358643077,1745332240097,-500.0,0.00021917,2]
[358643078,1745332240112,-500.0,0.00021917,2]
[358643079,1745332240126,-500.0,0.00021917,2]
[358643080,1745332240139,-500.0,0.00021917,2]
[358643081,1745332240153,-182.39636618,0.00021917,2]
[358643082,1745332240164,-500.0,0.00021917,2]
[358643083,1745332240176,-500.0,0.00021917,2]
[358643084,1745332240188,-1000.0,0.00021917,2]
[358643085,1745332240201,-500.0,0.00021917,2]
[358643086,1745332240212,-500.0,0.00021917,2]
[358643087,1745332240224,-500.0,0.00021917,2]
[358643088,1745332240238,-500.0,0.00021917,2]
[358643089,1745332240250,-500.0,0.00021917,2]
[358643090,1745332240264,-505.1590037,0.00021917,2]
[358643091,1745332240276,-500.0,0.00021917,2]
[358643092,1745332240289,-500.0,0.00021917,2]
[358643093,1745332240302,-500.0,0.00021917,2]
[358643094,1745332240316,-513.88346608,0.00021917,2]
[358643095,1745332240329,-599.28146797,0.00021917,2]
[358643096,1745332240345,-500.0,0.00021917,2]
[358643097,1745332240359,-500.0,0.00021917,2]
[358643098,1745332240370,-500.0,0.00021917,2]
[358643099,1745332240381,-500.0,0.00021917,2]
[358643101,1745332240392,-500.0,0.00021917,2]
[358643103,1745332240403,-500.0,0.00021917,2]
[358643104,1745332240415,-216.4177862,0.00021917,2]
[358643105,1745332240427,-500.0,0.00021917,2]
[358643106,1745332240440,-500.0,0.00021917,2]
[358643107,1745332240454,-500.0,0.00021917,2]
[358643108,1745332240467,-500.0,0.00021917,2]
[358643109,1745332240478,-500.0,0.00021917,2]
[358643110,1745332240489,-500.0,0.00021917,2]
[358643111,1745332240501,-500.0,0.00021917,2]
[358643112,1745332240512,-500.0,0.00021917,2]
[358643113,1745332240524,-500.0,0.00021917,2]
[358643114,1745332240538,-500.0,0.00021917,2]
[358643115,1745332240551,-500.0,0.00021917,2]
[358643116,1745332240562,-500.0,0.00021917,2]
[358643117,1745332240572,-500.0,0.00021917,2]
[358643118,1745332240585,-500.0,0.00021917,2]
[358643119,1745332240596,-500.0,0.00021917,2]
[358643120,1745332240607,-215.15714189,0.00021917,2]